bitfinex-derivatives/quotes_ETHF0:USTF0_20250322
["timestamp","ask_amount","ask_price","bid_price","bid_amount"]
[1742606407059,5.6747,1983.7,1983.6,2.31445]
[1742606408847,4.6661,1983.7,1983.6,2.31445]
[1742606409749,5.6747,1983.7,1983.6,2.31445]
[1742606410048,4.6661,1983.7,1983.6,2.31445]
[1742606410952,5.6747,1983.7,1983.6,2.31445]
[1742606411647,2.4107,1983.7,1983.6,2.31445]
[1742606411849,1.4021,1983.7,1983.6,2.31445]
[1742606412047,3.2715582,1983.8,1983.7,1.0086]
[1742606412352,4.6322582,1983.8,1983.7,2.404]
[1742606412552,4.6322582,1983.8,1983.7,3.0967]
[1742606412745,5.6407982,1983.8,1983.7,3.0967]
[1742606413345,5.6407982,1983.8,1983.7,2.404]
[1742606414447,1.0086,1983.7,1983.6,1.00862]
[1742606414646,3.0621,1983.7,1983.6,2.40402]
[1742606415555,3.2715582,1983.8,1983.7,1.0086]
[1742606415849,1.4160582,1983.8,1983.7,2.3397]
[1742606416243,0.0075582,1983.8,1983.7,2.3397]
[1742606420458,0.0075582,1983.8,1983.7,8.2117]
[1742606425748,0.0075582,1983.8,1983.7,8.76676779]
[1742606427671,0.0075582,1983.8,1983.7,8.2117]
[1742606427874,0.0075582,1983.8,1983.7,8.76682098]
[1742606429671,0.0075582,1983.8,1983.7,8.2117]
[1742606429876,0.7068582,1983.8,1983.7,8.2117]
[1742606430172,1.9927582,1983.8,1983.7,8.2117]
[1742606430676,1.9927582,1983.8,1983.7,8.76687623]
[1742606431177,1.9927582,1983.8,1983.7,8.76682678]
[1742606431475,1.9927582,1983.8,1983.7,8.2117]
[1742606431974,1.9927582,1983.8,1983.7,8.76689986]
[1742606432971,1.9927582,1983.8,1983.7,8.7670188]
[1742606434981,1.9927582,1983.8,1983.7,11.9748188]
[1742606435379,1.9927582,1983.8,1983.7,8.7670188]
[1742606435579,1.9927582,1983.8,1983.7,11.9748188]
[1742606438575,1.9927582,1983.8,1983.7,11.4195]
[1742606438776,1.9927582,1983.8,1983.7,11.97510941]
[1742606440584,1.9927582,1983.8,1983.7,11.97541012]
[1742606444389,1.9927582,1983.8,1983.7,9.65767909]
[1742606444589,1.9927582,1983.8,1983.7,12.86547909]
[1742606447494,3.0012982,1983.8,1983.7,10.6445458]
[1742606447687,3.0012982,1983.8,1983.7,6.4281458]
[1742606447889,3.0012982,1983.8,1983.7,4.811]
[1742606448089,3.6461982,1983.8,1983.7,4.811]
[1742606448790,6.8539982,1983.8,1983.7,3.75]
[1742606448993,2.52166,1983.6,1983.3,3.2078]
[1742606449199,1.00875,1983.4,1983.3,4.21657]
[1742606449600,1.00875,1983.4,1983.3,5.52117]
[1742606452389,1.00885,1983.2,1983.1,4.2242082]
[1742606452688,1.00885,1983.2,1983.1,1.0164082]
[1742606452883,1.00885,1983.2,1983.1,2.3633082]
[1742606453388,1.65615,1983.2,1983.1,2.3633082]
[1742606453594,4.91815,1983.2,1983.1,2.3633082]
[1742606454192,1.3868,1983.3,1983.2,1.00885]
[1742606454397,1.3868,1983.3,1983.2,2.35575]
[1742606454593,2.3956,1983.3,1983.2,2.35575]
[1742606457004,3.0441,1983.3,1983.2,2.35575]
[1742606462108,2.3956,1983.3,1983.2,2.35575]
[1742606462408,1.3868,1983.3,1983.2,2.35575]
[1742606463302,4.27077,1983.4,1983.3,1.0088]
[1742606463609,4.27077,1983.4,1983.3,6.9222]
[1742606465313,3.262,1983.4,1983.3,6.9222]
[1742606465511,4.27075,1983.4,1983.3,3.7144]
[1742606468310,5.56375,1983.4,1983.3,3.7144]
[1742606469213,1.293,1983.4,1983.3,6.9222]
[1742606469515,1.00869,1983.6,1983.5,1.00865]
[1742606469713,4.27069,1983.6,1983.5,1.00865]
[1742606470608,1.0087,1983.5,1983.4,2.35911]
[1742606470814,2.3828,1983.5,1983.4,2.35911]
[1742606472117,2.3828,1983.5,1983.4,1.3504]
[1742606472611,3.0385,1983.5,1983.4,1.3504]
[1742606473012,4.55157,1983.5,1983.1,5.7375182]
[1742606473217,1.00885,1983.3,1983.2,2.35921]
[1742606473618,2.42015,1983.3,1983.2,2.35921]
[1742606478717,1.00885,1983.3,1983.2,2.35921]
[1742606479123,2.41075,1983.3,1983.2,2.35921]
[1742606484026,2.41075,1983.3,1983.2,1.3504]
[1742606484425,1.00885,1983.2,1983.1,0.0075582]
[1742606484629,5.54555,1983.2,1983.1,0.0075582]
[1742606484830,5.54555,1983.2,1983.1,1.0164582]
[1742606485134,5.54555,1983.2,1983.1,1.7153582]
[1742606485327,5.54555,1983.2,1983.1,3.0164582]
[1742606490138,5.54555,1983.2,1983.1,2.0075582]
[1742606490639,6.24855,1983.2,1983.1,2.0075582]
[1742606492134,6.24855,1983.2,1983.1,3.0164582]
[1742606492341,5.54555,1983.2,1983.1,3.0164582]
[1742606494436,5.54555,1983.2,1983.1,2.0075582]
[1742606494637,5.54555,1983.2,1983.1,3.0164582]
[1742606494840,5.54555,1983.2,1983.1,2.0075582]
[1742606496746,5.54555,1983.2,1983.1,1.3086582]
[1742606501148,5.54555,1983.2,1983.1,2.3175582]
[1742606502047,2.28355,1983.2,1983.1,2.3175582]
[1742606502248,5.54555,1983.2,1983.1,2.3175582]
[1742606504246,2.28355,1983.2,1983.1,2.3175582]
[1742606504445,5.54555,1983.2,1983.1,2.3175582]
[1742606505255,4.5367,1983.2,1983.1,2.3175582]
[1742606505547,1.00872,1983.5,1983.4,1.00875]
[1742606505849,46.63,1983.6,1983.5,1.0087]
[1742606506040,0.0075582,1983.8,1983.7,1.0086]
[1742606506244,2.4196282,1983.8,1983.7,1.0086]
[1742606506443,5.6816282,1983.8,1983.7,2.3551]
[1742606506842,4.6730582,1983.8,1983.7,3.0366]
[1742606507038,3.2695582,1983.8,1983.7,3.0366]
[1742606507247,0.0075582,1983.8,1983.7,3.0366]
[1742606507639,0.0075582,1983.8,1983.7,6.2444]
[1742606507848,0.0075582,1983.8,1983.7,6.80075319]
[1742606508245,0.0075582,1983.8,1983.7,6.2444]
[1742606509158,4.26939,1984.1,1984.0,1.00844]
[1742606509354,5.54419,1984.1,1984.0,1.00844]
[1742606510247,1.00847,1984.0,1983.9,1.00845]
[1742606510447,1.00849,1983.9,1983.8,2.38882]
[1742606510647,1.00849,1983.9,1983.8,1.3803]
[1742606510847,4.26949,1983.9,1983.8,1.3803]
[1742606511647,5.65359,1983.9,1983.8,1.3803]
[1742606512846,1.0086,1983.7,1983.6,0.6652]
[1742606513052,1.0086,1983.7,1983.6,1.67385]
[1742606513254,4.2696,1983.7,1983.6,1.67385]
[1742606514261,5.6068,1983.7,1983.6,2.97345]
[1742606516953,5.6068,1983.7,1983.6,1.9648]
[1742606517149,5.6068,1983.7,1983.6,1.2996]
[1742606518455,1.00875,1983.4,1983.3,1.64775]
[1742606518655,1.00875,1983.4,1983.3,2.29535]
[1742606519758,2.33895,1983.4,1983.3,2.29535]
[1742606520654,2.33895,1983.4,1983.3,1.2866]
[1742606521055,2.33895,1983.4,1983.3,2.7014]
[1742606521255,2.33895,1983.4,1983.3,3.7102]
[1742606521855,5.54675,1983.4,1983.3,1.4148]
[1742606523057,2.33895,1983.4,1983.3,1.4148]
[1742606524062,5.54675,1983.4,1983.3,1.4148]
[1742606524360,11.51475,1983.4,1983.3,1.4148]
[1742606524564,1.00885,1983.2,1983.1,0.0075582]
[1742606524756,4.26885,1983.2,1983.1,0.0075582]
[1742606525360,4.26885,1983.2,1983.1,2.9993582]
[1742606525661,4.26885,1983.2,1983.1,1.9904582]
[1742606526261,4.26885,1983.2,1983.1,2.6864582]
[1742606527257,4.26885,1983.2,1983.1,1.2969582]
[1742606529050,7.47665,1983.2,1983.1,1.2969582]
[1742606529256,8.16385,1983.2,1983.1,0.0075582]
[1742606530361,8.243535,1983.2,1983.1,0.0075582]
[1742606530564,9.579735,1983.2,1983.1,0.0075582]
[1742606531866,15.547735,1983.2,1983.1,0.0075582]
[1742606532358,18.047735,1983.2,1983.1,0.0075582]
[1742606532558,18.047735,1983.2,1983.1,8.2e-06]
[1742606534763,18.04774097,1983.2,1983.1,8.2e-06]
[1742606542769,18.04874097,1983.2,1983.1,8.2e-06]
[1742606543067,18.04874237,1983.2,1983.1,8.2e-06]
[1742606545971,18.04874237,1983.2,1983.1,1.2927082]
[1742606546465,18.04874237,1983.2,1983.1,8.2e-06]
[1742606546972,18.05674237,1983.2,1983.1,8.2e-06]
[1742606548157,17.97705,1983.2,1983.1,8.2e-06]
[1742606548365,18.05674741,1983.2,1983.1,8.2e-06]
[1742606548767,18.05674741,1983.2,1982.7,0.6416]
[1742606548768,1.009,1982.9,1982.8,1.405]
[1742606549076,7.55749741,1982.9,1982.8,1.405]
[1742606552968,8.92020377,1982.9,1982.8,1.405]
[1742606554876,8.92020415,1982.9,1982.8,1.405]
[1742606556276,8.9202031,1982.9,1982.8,1.405]
[1742606558978,8.9202031,1982.9,1982.8,0.54289322]
[1742606559375,8.9202031,1982.9,1982.8,0.24161298]
[1742606562473,14.8882031,1982.9,1982.8,0.24161298]
[1742606562673,1.00905,1982.8,1982.7,1.9525582]
[1742606562875,8.4205531,1982.8,1982.7,1.9525582]
[1742606564775,55.0695531,1982.8,1982.7,1.9525582]
[1742606566281,55.06956216,1982.8,1982.7,1.9525582]
[1742606569379,55.06955862,1982.8,1982.7,1.9525582]
[1742606570688,55.06955862,1982.8,1982.7,0.87831001]
[1742606571280,1.0091,1982.7,1982.6,0.61089808]
[1742606571582,8.92180862,1982.7,1982.6,0.61089808]
[1742606572693,8.8421,1982.7,1982.6,0.61089808]
[1742606572885,8.9218057,1982.7,1982.6,0.61089808]
[1742606573883,8.9218057,1982.7,1982.6,1.31329808]
[1742606574181,4.2701,1982.7,1982.6,1.31329808]
[1742606574489,7.4779,1982.7,1982.6,2.70439808]
[1742606575384,8.7689,1982.7,1982.6,2.70439808]
[1742606575781,5.5611,1982.7,1982.6,2.70439808]
[1742606575987,8.7689,1982.7,1982.6,2.70439808]
[1742606584683,3.2078,1982.7,1982.6,3.71354808]
[1742606584888,3.261,1982.7,1982.6,2.70439808]
[1742606585393,4.2701,1982.7,1982.6,3.71351808]
[1742606589795,5.6415,1982.7,1982.6,3.71351808]
[1742606592793,1.0091,1982.7,1982.6,3.71351808]
[1742606593097,47.65809,1982.8,1982.7,1.0091]
[1742606593398,47.65809,1982.8,1982.7,2.3501]
[1742606593399,50.91809,1982.8,1982.7,2.3501]
[1742606593791,52.32659,1982.8,1982.7,2.3501]
[1742606594392,50.91809,1982.8,1982.7,2.3501]
[1742606595002,49.909,1982.8,1982.7,2.3501]
[1742606595202,50.91805,1982.8,1982.7,2.3501]
[1742606600697,46.649,1982.8,1982.7,2.3501]
[1742606601001,49.909,1982.8,1982.7,2.3501]
[1742606601396,51.229,1982.8,1982.7,2.3501]
[1742606603104,5.58905,1982.8,1982.7,2.3501]
[1742606603700,4.58,1982.8,1982.7,2.3501]
[1742606604004,5.58905,1982.8,1982.7,2.3501]
[1742606604593,4.58,1982.8,1982.7,2.3501]
[1742606606206,5.58905,1982.8,1982.7,2.3501]
[1742606606408,4.58,1982.8,1982.7,2.3501]
[1742606606600,0.0075582,1983.0,1982.9,1.009]
[1742606606795,1.3601582,1983.0,1982.9,1.009]
[1742606607001,0.0075582,1983.0,1982.9,1.6749]
[1742606607209,0.0075582,1983.0,1982.9,4.8361]
[1742606607406,6.4668,1983.2,1983.1,1.0089]
[1742606607606,7.8194,1983.2,1983.1,1.0089]
[1742606607808,4.6116,1983.2,1983.1,1.0089]
[1742606609102,1.0089,1983.1,1983.0,2.41062]
[1742606609303,2.3643,1983.1,1983.0,2.41062]
[1742606621227,2.3643,1983.1,1983.0,1.00892]
[1742606622528,2.3643,1983.1,1983.0,2.29082]
[1742606625428,1.3554,1983.1,1983.0,2.29082]
[1742606627032,2.3643,1983.1,1983.0,2.29082]
[1742606631125,1.3554,1983.1,1983.0,2.29082]
[1742606632235,2.3643,1983.1,1983.0,2.29082]
[1742606632434,1.3554,1983.1,1983.0,2.29082]
[1742606633635,2.3643,1983.1,1983.0,2.29082]
[1742606635029,1.00895,1983.0,1982.9,2.37695]
[1742606635233,1.00895,1983.0,1982.9,3.78645]
[1742606635234,2.36825,1983.0,1982.9,3.78645]
[1742606639044,1.3593,1983.0,1982.9,4.34363158]
[1742606639438,2.36825,1983.0,1982.9,4.34363158]
[1742606640551,1.3593,1983.0,1982.9,4.34363158]
[1742606641343,3.2645582,1983.3,1983.2,1.00885]
[1742606641747,4.2733582,1983.3,1983.2,1.00885]
[1742606642646,5.5865582,1983.3,1983.2,1.00885]
[1742606643142,5.5865582,1983.3,1983.2,2.32095]
[1742606645449,1.0089,1983.2,1983.1,1.00885]
[1742606645649,2.3302,1983.2,1983.1,1.00885]
[1742606646653,2.3302,1983.2,1983.1,2.38305]
[1742606646852,2.3302,1983.2,1983.1,1.00885]
[1742606653455,2.3302,1983.2,1983.1,2.36705]
[1742606658162,2.3302,1983.2,1983.1,1.00885]
[1742606660753,2.3302,1983.2,1983.1,2.35675]
[1742606666560,1.3213,1983.2,1983.1,2.35675]
[1742606666760,2.33015,1983.2,1983.1,2.35675]
[1742606673670,1.3213,1983.2,1983.1,2.35675]
[1742606673872,1.3213,1983.2,1983.1,2.91447948]
[1742606674069,1.3213,1983.2,1983.1,2.35675]
[1742606675566,1.3213,1983.2,1983.1,2.914487]
[1742606675767,1.3213,1983.2,1983.1,2.91449479]
[1742606675976,1.3213,1983.2,1983.1,2.91448315]
[1742606676273,1.3213,1983.2,1983.1,2.35675]
[1742606683679,2.33015,1983.2,1983.1,2.35675]
[1742606684474,1.3213,1983.2,1983.1,2.35675]
[1742606684683,2.33015,1983.2,1983.1,2.35675]
[1742606691585,1.3213,1983.2,1983.1,2.35675]
[1742606691784,1.3213,1983.2,1983.1,2.91449113]
[1742606692977,1.3213,1983.2,1983.1,2.91446946]
[1742606693681,1.3213,1983.2,1983.1,6.12226946]
[1742606696686,1.3213,1983.2,1983.1,2.91446946]
[1742606696885,1.3213,1983.2,1983.1,6.12226946]
[1742606698791,1.3213,1983.2,1983.1,6.12281396]
[1742606699285,1.3213,1983.2,1983.1,2.35675]
[1742606699788,1.3213,1983.2,1983.1,5.56455]
[1742606702393,2.33015,1983.2,1983.1,5.56455]
[1742606702591,2.33015,1983.2,1983.1,4.21665]
[1742606702799,2.33015,1983.2,1983.1,1.00885]
[1742606702987,3.64045,1983.2,1983.1,1.00885]
[1742606703694,1.3213,1983.2,1983.1,4.21665]
[1742606704088,1.3213,1983.2,1983.1,5.62815]
[1742606705490,1.3213,1983.2,1983.1,6.28465]
[1742606706189,1.3213,1983.2,1983.1,6.84349951]
[1742606707397,1.3213,1983.2,1983.1,6.84350955]
[1742606709298,1.3213,1983.2,1983.1,6.84347473]
[1742606711194,1.3213,1983.2,1983.1,6.28465]
[1742606711394,1.3213,1983.2,1983.1,6.84324997]
[1742606711595,2.33015,1983.2,1983.1,6.84324997]
[1742606711794,2.33015,1983.2,1983.1,6.28465]
[1742606712197,2.33015,1983.2,1983.1,1.66535]
[1742606712391,2.33015,1983.2,1983.1,1.00885]
[1742606713395,2.33015,1983.2,1983.1,2.40445]
[1742606713997,2.33015,1983.2,1983.1,1.00885]
[1742606715298,2.33015,1983.2,1983.1,2.32275]
[1742606717597,2.33015,1983.2,1983.1,1.00885]
[1742606718504,2.33015,1983.2,1983.1,3.03515]
[1742606720401,1.3213,1983.2,1983.1,6.24295]
[1742606721405,1.3213,1983.2,1983.1,6.80146941]
[1742606724001,49.8358,1983.8,1983.3,5.04401]
[1742606724208,3.254,1983.8,1983.5,3.2078]
[1742606724504,1.3123,1983.6,1983.5,1.0087]
[1742606725203,2.32095,1983.6,1983.5,1.0087]
[1742606731630,1.3123,1983.6,1983.5,1.0087]
[1742606733118,2.32095,1983.6,1983.5,1.0087]
[1742606736015,2.32095,1983.6,1983.5,1.6641]
[1742606736214,1.3123,1983.6,1983.5,1.6641]
[1742606736416,1.3123,1983.6,1983.5,4.8719]
[1742606738110,1.3123,1983.6,1983.5,5.5706]
[1742606739620,1.3123,1983.6,1983.5,6.9238]
[1742606740218,2.32095,1983.6,1983.5,6.9238]
[1742606741019,2.32095,1983.6,1983.5,3.716]
[1742606743123,1.3123,1983.6,1983.5,3.716]
[1742606744325,2.32095,1983.6,1983.5,3.716]
[1742606747322,1.3123,1983.6,1983.5,3.716]
[1742606749829,2.32095,1983.6,1983.5,3.716]
[1742606750429,1.3123,1983.6,1983.5,3.716]
[1742606752323,2.32095,1983.6,1983.5,3.716]
[1742606753829,1.3123,1983.6,1983.5,3.716]
[1742606754025,1.3123,1983.6,1983.5,4.27394521]
[1742606754838,1.3123,1983.6,1983.5,4.27397208]
[1742606756143,0.0075582,1983.7,1983.6,1.00865]
[1742606756439,1.3400582,1983.7,1983.6,2.28675]
[1742606762241,1.3400582,1983.7,1983.6,2.84472526]
[1742606762644,1.3400582,1983.7,1983.6,2.28675]
[1742606765640,1.3400582,1983.7,1983.6,2.84458867]
[1742606766533,7.31023556,1984.2,1983.9,2.52124]
[1742606766738,8.31861556,1984.2,1984.1,1.00839]
[1742606767133,4.21611,1984.4,1984.3,1.00829]
[1742606767339,1.00839,1984.2,1984.1,1.00835]
[1742606767945,2.36819,1984.2,1984.1,1.00835]
[1742606770748,1.00839,1984.1,1984.0,3.6294482]
[1742606770949,2.37609,1984.1,1984.0,3.6294482]
[1742606772753,2.37609,1984.1,1984.0,1.6564482]
[1742606773442,2.37609,1984.1,1984.0,3.0279482]
[1742606781158,5.62609,1984.1,1984.0,0.0075582]
[1742606783552,4.6177,1984.1,1983.7,0.6512]
[1742606783759,1.00865,1983.6,1983.5,6.2162]
[1742606783953,1.00874,1983.5,1983.4,1.00869]
[1742606784262,2.40054,1983.5,1983.4,3.00839]
[1742606787861,2.40054,1983.5,1983.4,0.685]
[1742606788065,1.00875,1983.4,1983.3,0.6968582]
[1742606788367,1.00894,1983.1,1983.0,1.00892]
[1742606788562,1.00894,1983.1,1983.0,2.35752]
[1742606788965,1.00895,1983.0,1982.9,4.21677]
[1742606789261,1.009,1982.9,1982.8,1.3526]
[1742606789467,1.009,1982.9,1982.8,0.6887582]
[1742606789667,1.009,1982.9,1982.8,0.0075582]
[1742606789859,2.4136,1982.9,1982.8,0.0075582]
[1742606791863,2.4136,1982.9,1982.8,1.0166082]
[1742606792172,1.4046,1982.9,1982.8,1.0166082]
[1742606792468,2.4136,1982.9,1982.8,1.6744082]
[1742606795765,4.9136,1982.9,1982.8,0.0075582]
[1742606795968,3.0954,1982.9,1982.8,0.0075582]
[1742606796767,4.6546,1982.9,1982.8,1.0166082]
[1742606797577,4.6546,1982.9,1982.8,2.3283082]
[1742606797764,5.6636,1982.9,1982.8,2.3283082]
[1742606797963,5.6636,1982.9,1982.8,1.3192582]
[1742606798465,5.6636,1982.9,1982.8,0.6461582]
[1742606799167,5.6636,1982.9,1982.8,0.0075582]
[1742606799671,6.3653,1982.9,1982.8,0.0075582]
[1742606799973,5.6636,1982.9,1982.8,0.0075582]
[1742606800164,5.6636,1982.9,1982.8,1.2885582]
[1742606801863,5.6636,1982.9,1982.8,0.0075582]
[1742606803277,8.8714,1982.9,1982.8,0.0075582]
[1742606803575,5.6636,1982.9,1982.8,0.0075582]
[1742606804577,8.8714,1982.9,1982.8,0.0075582]
[1742606807282,5.6636,1982.9,1982.8,0.0075582]
[1742606807879,5.6636,1982.9,1982.8,1.0166082]
[1742606808080,5.6636,1982.9,1982.8,1.3027582]
[1742606808888,5.6636,1982.9,1982.8,2.3118082]
[1742606809089,5.6636,1982.9,1982.8,1.3027582]
[1742606809590,5.6636,1982.9,1982.8,2.3118082]
[1742606809781,5.6636,1982.9,1982.8,1.3027582]
[1742606809985,5.6636,1982.9,1982.8,2.3118082]
[1742606810290,5.6636,1982.9,1982.8,1.3027582]
[1742606811392,5.6636,1982.9,1982.8,2.3118082]
[1742606811582,1.4046,1982.9,1982.8,2.3118082]
[1742606811783,5.6646,1982.9,1982.8,2.3118082]
[1742606813587,5.6646,1982.9,1982.8,1.3027582]
[1742606813788,5.6646,1982.9,1982.8,2.3118082]
[1742606813986,5.6646,1982.9,1982.8,1.0166082]
[1742606814293,5.6646,1982.9,1982.8,0.0075582]
[1742606814784,5.6646,1982.9,1982.8,1.0166082]
[1742606814988,5.6646,1982.9,1982.8,2.3356082]
[1742606816992,5.6646,1982.9,1982.8,0.0075582]
[1742606817581,6.3136,1982.9,1982.8,0.0075582]
[1742606824195,6.39330007,1982.9,1982.8,0.0075582]
[1742606824996,6.39330007,1982.9,1982.8,0.00299856]
[1742606827396,6.39330189,1982.9,1982.8,0.00299856]
[1742606828109,6.3136,1982.9,1982.8,0.00299856]
[1742606828297,6.39329829,1982.9,1982.8,0.00299856]
[1742606829696,8.89329829,1982.9,1982.8,0.00299856]
[1742606829898,8.89329829,1982.9,1982.8,8.56e-06]
[1742606832197,8.89330974,1982.9,1982.8,8.56e-06]
[1742606833905,14.86130974,1982.9,1982.8,8.56e-06]
[1742606837103,14.86131011,1982.9,1982.8,8.56e-06]
[1742606839105,11.71131011,1982.9,1982.8,8.56e-06]
[1742606839509,11.71131011,1982.9,1982.8,1.35820856]
[1742606839727,11.71131011,1982.9,1982.8,2.00350856]
[1742606840412,11.7113036,1982.9,1982.8,2.00350856]
[1742606842719,11.7113036,1982.9,1982.8,0.79499208]
[1742606843017,11.7113036,1982.9,1982.8,0.6453]
[1742606843412,11.6316,1982.9,1982.8,0.6453]
[1742606843611,11.71130327,1982.9,1982.8,0.6453]
[1742606845111,11.71130331,1982.9,1982.8,0.6453]
[1742606846820,11.71130456,1982.9,1982.8,0.6453]
[1742606847718,11.7113001,1982.9,1982.8,1.9513]
[1742606847918,8.4613001,1982.9,1982.8,1.9513]
[1742606848113,11.71129852,1982.9,1982.8,1.9513]
[1742606848320,11.6316,1982.9,1982.8,1.9513]
[1742606848519,11.71129942,1982.9,1982.8,1.9513]
[1742606848722,2.49329942,1982.9,1982.8,1.9513]
[1742606849115,5.6636,1982.9,1982.8,1.9513]
[1742606849322,5.74329619,1982.9,1982.8,1.9513]
[1742606849522,5.6636,1982.9,1982.8,1.9513]
[1742606850124,5.74329695,1982.9,1982.8,1.9513]
[1742606850516,5.74329695,1982.9,1982.8,0.6453]
[1742606851815,5.74330349,1982.9,1982.8,2.0169]
[1742606853426,5.74330229,1982.9,1982.8,2.0169]
[1742606856228,5.74330229,1982.9,1982.8,0.6453]
[1742606856432,1.00905,1982.8,1982.7,0.6957582]
[1742606856624,5.61555229,1982.8,1982.7,0.6957582]
[1742606856928,1.00926,1982.4,1982.3,2.0167]
[1742606857126,4.25926,1982.4,1982.3,2.0167]
[1742606857522,5.57826,1982.4,1982.3,2.0167]
[1742606868329,5.57826,1982.4,1981.7,5.73173]
[1742606868330,10.537,1982.4,1981.7,5.73173]
[1742606868534,1.00936,1982.2,1982.1,0.6996]
[1742606868736,7.46716,1982.2,1982.1,2.0387]
[1742606868944,8.78366,1982.2,1982.1,2.0387]
[1742606869136,5.57586,1982.2,1982.1,2.0387]
[1742606869637,8.78366,1982.2,1982.1,2.0387]
[1742606871733,5.57586,1982.2,1982.1,2.0387]
[1742606872434,5.57586,1982.2,1982.1,3.04811]
[1742606874044,5.57586,1982.2,1982.1,2.0387]
[1742606877638,8.78366,1982.2,1982.1,0.6996]
[1742606878639,8.78366,1982.2,1982.1,2.0393]
[1742606879146,8.78366,1982.2,1982.1,0.6996]
[1742606879642,8.78366,1982.2,1982.1,2.0129]
[1742606880749,1.00941,1982.1,1982.0,0.6996]
[1742606880947,2.32801,1982.1,1982.0,0.6996]
[1742606881938,2.32801,1982.1,1982.0,2.0129]
[1742606883954,2.32801,1982.1,1982.0,0.6996]
[1742606884446,2.32801,1982.1,1982.0,2.0046]
[1742606886645,5.53581,1982.1,1982.0,2.0046]
[1742606887137,1.3186,1982.1,1982.0,3.01406]
[1742606887541,2.32801,1982.1,1982.0,3.01406]
[1742606887844,2.32801,1982.1,1982.0,2.0046]
[1742606888042,2.32801,1982.1,1982.0,3.01406]
[1742606890353,1.3186,1982.1,1982.0,3.01406]
[1742606890650,2.32801,1982.1,1982.0,3.01406]
[1742606893346,2.32801,1982.1,1982.0,2.0046]
[1742606893749,2.32801,1982.1,1982.0,3.01406]
[1742606894352,2.32801,1982.1,1982.0,2.0046]
[1742606895350,2.32801,1982.1,1982.0,0.6996]
[1742606899457,1.00946,1982.0,1981.9,0.6834]
[1742606899659,5.56676,1982.0,1981.9,0.6834]
[1742606902156,5.56676,1982.0,1981.9,2.0446]
[1742606907064,5.56676,1982.0,1981.9,0.6834]
[1742606914967,1.00956,1981.8,1981.7,0.6703]
[1742606915172,1.00956,1981.8,1981.7,3.68111]
[1742606917367,2.3630982,1981.9,1981.8,1.00956]
[1742606917671,2.3630982,1981.9,1981.8,2.35036]
[1742606919773,1.00956,1981.8,1981.7,1.3382]
[1742606919974,2.36056,1981.8,1981.7,2.709]
[1742606921166,2.36056,1981.8,1981.7,3.71857]
[1742606921975,2.36056,1981.8,1981.7,3.71861]
[1742606922776,2.36056,1981.8,1981.7,2.709]
[1742606923077,2.36056,1981.8,1981.7,3.71861]
[1742606923376,2.36056,1981.8,1981.7,2.709]
[1742606923775,2.36056,1981.8,1981.7,3.71861]
[1742606924078,2.36056,1981.8,1981.7,2.709]
[1742606924274,2.36056,1981.8,1981.7,3.71861]
[1742606924466,2.36056,1981.8,1981.7,1.3382]
[1742606924969,5.60956,1981.8,1981.7,1.3382]
[1742606927375,5.60956,1981.8,1981.7,2.7476]
[1742606927976,5.60956,1981.8,1981.7,1.3382]
[1742606931678,5.60956,1981.8,1981.7,2.34781]
[1742606931983,5.60956,1981.8,1981.7,1.3382]
[1742606933186,5.60956,1981.8,1981.7,2.34781]
[1742606933378,5.60956,1981.8,1981.7,1.3382]
[1742606933985,5.60956,1981.8,1981.7,2.34781]
[1742606934181,5.60956,1981.8,1981.7,1.3382]
[1742606934480,5.60956,1981.8,1981.7,2.34781]
[1742606934887,5.60956,1981.8,1981.7,3.63201]
[1742606937989,5.60956,1981.8,1981.7,2.34781]
[1742606938385,5.60956,1981.8,1981.7,1.3382]
[1742606938792,5.60956,1981.8,1981.6,1.00962]
[1742606938793,1.00961,1981.7,1981.6,1.00962]
[1742606938996,2.28441,1981.7,1981.6,1.00962]
[1742606939493,2.28441,1981.7,1981.6,2.41192]
[1742606943296,2.28441,1981.7,1981.6,1.00962]
[1742606943598,1.00966,1981.6,1981.5,6.90538]
[1742606943889,2.32146,1981.6,1981.5,7.46475206]
[1742606945197,5.56946,1981.6,1981.5,4.77694066]
[1742606945388,1.00981,1981.4,1981.3,1.00974]
[1742606945596,1.3118,1981.5,1981.3,3.76724513]
[1742606945797,1.3118,1981.5,1981.4,1.00977]
[1742606945996,1.3118,1981.5,1981.4,1.56914547]
[1742606946902,1.00971,1981.6,1981.5,1.00971]
[1742606947093,2.31721,1981.6,1981.5,4.21751]
[1742606948494,1.3075,1981.6,1981.5,4.21751]
[1742606949292,1.3075,1981.6,1981.5,4.76888009]
[1742606950200,1.3075,1981.6,1981.5,4.7688502]
[1742606950997,1.3075,1981.6,1981.5,4.76865417]
[1742606953601,1.3075,1981.6,1981.5,1.56085417]
[1742606953806,1.3075,1981.6,1981.5,4.76865417]
[1742606954806,1.3075,1981.6,1981.5,4.76874645]
[1742606956408,1.3075,1981.6,1981.5,5.42204645]
[1742606956609,1.3075,1981.6,1981.5,5.42207172]
[1742606958309,1.3075,1981.6,1981.5,6.06216893]
[1742606958509,1.3075,1981.6,1981.5,6.06216632]
[1742606959610,1.3075,1981.6,1981.5,7.34686632]
[1742606960709,1.00962,1981.8,1981.7,1.00956]
[1742606961011,1.8376232,1981.8,1981.7,1.00956]
[1742606961211,1.8376232,1981.8,1981.7,2.96096]
[1742606961411,1.00962,1981.8,1981.7,2.96096]
[1742606963801,2.30232,1981.8,1981.7,2.96096]
[1742606964410,1.2927,1981.8,1981.7,2.96096]
[1742606964609,1.2927,1981.8,1981.7,6.16876]
[1742606964610,2.30226,1981.8,1981.7,6.16876]
[1742606965413,1.2927,1981.8,1981.7,6.16876]
[1742606968218,2.30226,1981.8,1981.7,6.16876]
[1742606968417,1.2927,1981.8,1981.7,6.16876]
[1742606971816,2.30226,1981.8,1981.7,1.00956]
[1742606972016,2.30226,1981.8,1981.7,4.21736]